[Event "Titled Tuesday Blitz November 08 Early 2022"]
[White "Zivkovic, Nemanja"]
[Black "Rose, Felix"]
[WhiteFideId "942154"]
[BlackFideId "5105722"]
[WhiteElo "2372"]
[BlackElo "2039"]
[Result "1-0"]
[Round "01"]
[TimeControl "180+1"]
[Date "2022.11.09"]
[WhiteClock "0:00:36"]
[BlackClock "0:00:13"]

1. e4 {[%clk 0:02:57]}  c5 {[%clk 0:02:59]} 2. Nf3 {[%clk 0:02:54]}  d6 {[%clk 0:02:55]} 3. Bb5+ {[%clk 0:02:53]}  Bd7 {[%clk 0:02:56]} 4. Bxd7+ {[%clk 0:02:52]}  Nxd7 {[%clk 0:02:57]} 5. O-O {[%clk 0:02:48]}  Ngf6 {[%clk 0:02:57]} 6. Qe2 {[%clk 0:02:47]}  Rc8 {[%clk 0:02:53]} 7. c3 {[%clk 0:02:42]}  e6 {[%clk 0:02:52]} 8. d4 {[%clk 0:02:39]}  Be7 {[%clk 0:02:52]} 9. e5 {[%clk 0:02:37]}  Nd5 {[%clk 0:02:49]} 10. c4 {[%clk 0:02:35]}  N5b6 {[%clk 0:02:45]} 11. exd6 {[%clk 0:02:32]}  Bxd6 {[%clk 0:02:44]} 12. d5 {[%clk 0:02:31]}  e5 {[%clk 0:02:31]} 13. Nc3 {[%clk 0:02:28]}  O-O {[%clk 0:02:29]} 14. a4 {[%clk 0:02:24]}  Re8 {[%clk 0:02:21]} 15. a5 {[%clk 0:02:21]}  Na8 {[%clk 0:02:21]} 16. Ng5 {[%clk 0:02:18]}  Nf6 {[%clk 0:02:15]} 17. Nce4 {[%clk 0:02:08]}  h6 {[%clk 0:02:03]} 18. Nxf6+ {[%clk 0:02:05]}  Qxf6 {[%clk 0:02:00]} 19. Ne4 {[%clk 0:02:06]}  Qd8 {[%clk 0:02:01]} 20. Ra3 {[%clk 0:01:57]}  f5 {[%clk 0:01:58]} 21. Qh5 {[%clk 0:01:21]}  fxe4 {[%clk 0:01:32]} 22. Bxh6 {[%clk 0:01:20]}  Qf6 {[%clk 0:01:10]} 23. Rg3 {[%clk 0:01:17]}  Re7 {[%clk 0:00:45]} 24. Bg5 {[%clk 0:01:11]}  Qf7 {[%clk 0:00:41]} 25. Qh4 {[%clk 0:01:11]}  Rec7 {[%clk 0:00:37]} 26. Rh3 {[%clk 0:01:10]}  Qg6 {[%clk 0:00:37]} 27. f4 {[%clk 0:01:06]}  exf4 {[%clk 0:00:28]} 28. Bxf4 {[%clk 0:01:05]}  Bxf4 {[%clk 0:00:20]} 29. Qh8+ {[%clk 0:01:02]}  Kf7 {[%clk 0:00:20]} 30. Rxf4+ {[%clk 0:01:03]}  Ke7 {[%clk 0:00:18]} 31. Qh4+ {[%clk 0:01:00]}  Kd7 {[%clk 0:00:16]} 32. Rg3 {[%clk 0:00:55]}  Qh6 {[%clk 0:00:16]} 33. Qg4+ {[%clk 0:00:54]}  Kd6 {[%clk 0:00:15]} 34. Rxe4 {[%clk 0:00:50]}  Rd7 {[%clk 0:00:15]} 35. Re6+ {[%clk 0:00:50]}  Kc7 {[%clk 0:00:16]} 36. Rxh6 {[%clk 0:00:48]}  gxh6 {[%clk 0:00:16]} 37. Qf4+ {[%clk 0:00:48]}  Kd8 {[%clk 0:00:10]} 38. Qf8+ {[%clk 0:00:44]}  Kc7 {[%clk 0:00:10]} 39. Qxc5+ {[%clk 0:00:45]}  Kb8 {[%clk 0:00:09]} 40. Qd4 {[%clk 0:00:42]}  b6 {[%clk 0:00:09]} 41. axb6 {[%clk 0:00:38]}  Nxb6 {[%clk 0:00:10]} 42. b3 {[%clk 0:00:39]}  Re8 {[%clk 0:00:09]} 43. h3 {[%clk 0:00:39]}  Rde7 {[%clk 0:00:09]} 44. Rg7 {[%clk 0:00:38]}  Rxg7 {[%clk 0:00:09]} 45. Qxg7 {[%clk 0:00:39]}  Nc8 {[%clk 0:00:10]} 46. Qxh6 {[%clk 0:00:39]}  Ka8 {[%clk 0:00:09]} 47. Qc6+ {[%clk 0:00:39]}  Kb8 {[%clk 0:00:09]} 48. Qxe8 {[%clk 0:00:40]}  Kb7 {[%clk 0:00:09]} 49. Qc6+ {[%clk 0:00:39]}  Kb8 {[%clk 0:00:09]} 50. h4 {[%clk 0:00:39]}  a6 {[%clk 0:00:10]} 51. h5 {[%clk 0:00:39]}  Na7 {[%clk 0:00:11]} 52. Qb6+ {[%clk 0:00:39]}  Ka8 {[%clk 0:00:11]} 53. h6 {[%clk 0:00:38]}  a5 {[%clk 0:00:11]} 54. h7 {[%clk 0:00:38]}  Nc8 {[%clk 0:00:12]} 55. h8=Q {[%clk 0:00:36]}  a4 {[%clk 0:00:13]} 56. Qxc8# {[%clk 0:00:36]} 1-0


[Site "https://www.chess.com"]

[Event "Titled Tuesday Blitz November 08 Early 2022"]
[White "Alahakoon, Isuru"]
[Black "Jeet, Jain"]
[WhiteFideId "9900993"]
[BlackFideId "5073022"]
[WhiteElo "2004"]
[BlackElo "2067"]
[Result "0-1"]
[Round "02"]
[TimeControl "180+1"]
[Date "2022.11.09"]
[WhiteClock "0:00:06"]
[BlackClock "0:01:01"]

1. Nf3 {[%clk 0:03:00]}  g6 {[%clk 0:02:55]} 2. d4 {[%clk 0:03:00]}  Bg7 {[%clk 0:02:53]} 3. e4 {[%clk 0:03:00]}  d6 {[%clk 0:02:53]} 4. Nc3 {[%clk 0:03:00]}  Bg4 {[%clk 0:02:53]} 5. Be3 {[%clk 0:02:57]}  Nc6 {[%clk 0:02:53]} 6. Be2 {[%clk 0:02:56]}  e5 {[%clk 0:02:51]} 7. dxe5 {[%clk 0:02:43]}  dxe5 {[%clk 0:02:38]} 8. Qc1 {[%clk 0:02:41]}  Bxf3 {[%clk 0:02:36]} 9. Bxf3 {[%clk 0:02:39]}  Nd4 {[%clk 0:02:36]} 10. Bd1 {[%clk 0:02:18]}  Ne7 {[%clk 0:02:35]} 11. O-O {[%clk 0:02:17]}  O-O {[%clk 0:02:34]} 12. Ne2 {[%clk 0:02:16]}  c5 {[%clk 0:02:30]} 13. c3 {[%clk 0:02:16]}  Ne6 {[%clk 0:02:25]} 14. Bb3 {[%clk 0:02:15]}  Rc8 {[%clk 0:02:15]} 15. Bc4 {[%clk 0:02:10]}  Qd7 {[%clk 0:02:07]} 16. f4 {[%clk 0:02:01]}  Nxf4 {[%clk 0:02:03]} 17. Nxf4 {[%clk 0:02:02]}  exf4 {[%clk 0:02:04]} 18. Bxf4 {[%clk 0:01:48]}  b5 {[%clk 0:02:04]} 19. Rd1 {[%clk 0:01:47]}  Qb7 {[%clk 0:02:01]} 20. Bd5 {[%clk 0:01:45]}  Nxd5 {[%clk 0:01:59]} 21. exd5 {[%clk 0:01:46]}  Rcd8 {[%clk 0:01:56]} 22. d6 {[%clk 0:01:37]}  Rfe8 {[%clk 0:01:54]} 23. Qd2 {[%clk 0:01:33]}  Rd7 {[%clk 0:01:45]} 24. Qd5 {[%clk 0:01:24]}  Qb6 {[%clk 0:01:40]} 25. Re1 {[%clk 0:01:16]}  c4+ {[%clk 0:01:38]} 26. Kh1 {[%clk 0:01:14]}  Red8 {[%clk 0:01:34]} 27. Re7 {[%clk 0:00:53]}  Rxe7 {[%clk 0:01:33]} 28. dxe7 {[%clk 0:00:54]}  Rxd5 {[%clk 0:01:32]} 29. e8=Q+ {[%clk 0:00:54]}  Bf8 {[%clk 0:01:32]} 30. Rf1 {[%clk 0:00:24]}  Qd8 {[%clk 0:01:25]} 31. Qxd8 {[%clk 0:00:16]}  Rxd8 {[%clk 0:01:25]} 32. g3 {[%clk 0:00:12]}  Bc5 {[%clk 0:01:14]} 33. Kg2 {[%clk 0:00:10]}  a5 {[%clk 0:01:08]} 34. Kf3 {[%clk 0:00:09]}  a4 {[%clk 0:01:09]} 35. Ke2 {[%clk 0:00:06]}  f5 {[%clk 0:01:07]} 36. Rd1 {[%clk 0:00:06]}  Rxd1 {[%clk 0:01:05]} 37. Kxd1 {[%clk 0:00:07]}  Kf7 {[%clk 0:01:03]} 38. Kc2 {[%clk 0:00:06]}  Ke6 {[%clk 0:01:03]} 39. b3 {[%clk 0:00:06]}  Kd5 {[%clk 0:01:01]} 0-1


[Site "https://www.chess.com"]

[Event "Titled Tuesday Blitz November 08 Early 2022"]
[White "Anton Guijarro, David"]
[Black "Belozerov, Andrei"]
[WhiteFideId "2285525"]
[BlackFideId "4120213"]
[WhiteElo "2579"]
[BlackElo "2360"]
[Result "1-0"]
[Round "02"]
[TimeControl "180+1"]
[Date "2022.11.08"]
[WhiteClock "0:00:20"]
[BlackClock "0:00:23"]

1. e4 {[%clk 0:03:00]}  e6 {[%clk 0:02:59]} 2. Nc3 {[%clk 0:03:01]}  d5 {[%clk 0:03:00]} 3. Nf3 {[%clk 0:03:01]}  d4 {[%clk 0:03:00]} 4. Ne2 {[%clk 0:03:01]}  c5 {[%clk 0:03:01]} 5. Ng3 {[%clk 0:03:01]}  Nc6 {[%clk 0:02:52]} 6. Bb5 {[%clk 0:03:00]}  Ne7 {[%clk 0:02:49]} 7. a4 {[%clk 0:02:58]}  a6 {[%clk 0:02:47]} 8. Bc4 {[%clk 0:02:58]}  g6 {[%clk 0:02:37]} 9. d3 {[%clk 0:02:52]}  Bg7 {[%clk 0:02:30]} 10. O-O {[%clk 0:02:43]}  O-O {[%clk 0:02:27]} 11. Qe2 {[%clk 0:02:39]}  Qc7 {[%clk 0:02:15]} 12. Re1 {[%clk 0:02:34]}  e5 {[%clk 0:02:14]} 13. c3 {[%clk 0:02:33]}  Rb8 {[%clk 0:02:10]} 14. cxd4 {[%clk 0:02:32]}  cxd4 {[%clk 0:02:07]} 15. Bd2 {[%clk 0:02:30]}  b5 {[%clk 0:02:02]} 16. axb5 {[%clk 0:02:29]}  axb5 {[%clk 0:02:02]} 17. Bb3 {[%clk 0:02:29]}  Qd6 {[%clk 0:02:00]} 18. Rec1 {[%clk 0:02:16]}  Be6 {[%clk 0:01:59]} 19. Qd1 {[%clk 0:02:03]}  Rfc8 {[%clk 0:01:57]} 20. h4 {[%clk 0:01:57]}  h6 {[%clk 0:01:47]} 21. h5 {[%clk 0:01:53]}  g5 {[%clk 0:01:47]} 22. Nh2 {[%clk 0:01:21]}  Ra8 {[%clk 0:01:30]} 23. f3 {[%clk 0:01:21]}  Rxa1 {[%clk 0:01:15]} 24. Rxa1 {[%clk 0:01:22]}  Nb4 {[%clk 0:01:15]} 25. Bxe6 {[%clk 0:01:20]}  fxe6 {[%clk 0:01:15]} 26. Qb3 {[%clk 0:01:18]}  Nc2 {[%clk 0:01:04]} 27. Rc1 {[%clk 0:01:11]}  Ne3 {[%clk 0:01:02]} 28. Rxc8+ {[%clk 0:01:03]}  Nxc8 {[%clk 0:01:02]} 29. Ng4 {[%clk 0:00:55]}  Nxg4 {[%clk 0:00:58]} 30. fxg4 {[%clk 0:00:51]}  Qc5 {[%clk 0:00:50]} 31. Qxe6+ {[%clk 0:00:48]}  Kh7 {[%clk 0:00:48]} 32. Nf5 {[%clk 0:00:47]}  Qf8 {[%clk 0:00:42]} 33. Bb4 {[%clk 0:00:43]}  Qf6 {[%clk 0:00:36]} 34. Qxc8 {[%clk 0:00:41]}  Bf8 {[%clk 0:00:29]} 35. Bxf8 {[%clk 0:00:36]}  b4 {[%clk 0:00:28]} 36. Bg7 {[%clk 0:00:30]}  Qxg7 {[%clk 0:00:25]} 37. Nxg7 {[%clk 0:00:31]}  b3 {[%clk 0:00:26]} 38. Ne8 {[%clk 0:00:25]}  Kh8 {[%clk 0:00:23]} 39. Qd7 {[%clk 0:00:20]} 1-0


[Site "https://www.chess.com"]

[Event "Titled Tuesday Blitz November 08 Early 2022"]
[White "Avazkhonov, Alikhon"]
[Black "Sailer, Mike"]
[WhiteFideId "14208504"]
[BlackFideId "2012901"]
[WhiteElo "1739"]
[BlackElo "2109"]
[Result "1-0"]
[Round "02"]
[TimeControl "180+1"]
[Date "2022.11.09"]
[WhiteClock "0:00:06"]
[BlackClock "0:00:08"]

1. d4 {[%clk 0:03:00]}  d5 {[%clk 0:03:00]} 2. c4 {[%clk 0:03:01]}  Bf5 {[%clk 0:03:00]} 3. Nc3 {[%clk 0:02:51]}  e6 {[%clk 0:03:00]} 4. cxd5 {[%clk 0:02:48]}  exd5 {[%clk 0:03:00]} 5. Qb3 {[%clk 0:02:49]}  Nc6 {[%clk 0:02:46]} 6. Qxd5 {[%clk 0:02:02]}  Nxd4 {[%clk 0:02:18]} 7. e4 {[%clk 0:00:31]}  Nc2+ {[%clk 0:02:10]} 8. Ke2 {[%clk 0:00:30]}  Qxd5 {[%clk 0:02:01]} 9. Nxd5 {[%clk 0:00:31]}  O-O-O {[%clk 0:01:33]} 10. exf5 {[%clk 0:00:19]}  Nxa1 {[%clk 0:01:26]} 11. Nc3 {[%clk 0:00:18]}  Nc2 {[%clk 0:01:25]} 12. Nf3 {[%clk 0:00:17]}  Bc5 {[%clk 0:01:05]} 13. Ne4 {[%clk 0:00:07]}  Nd4+ {[%clk 0:00:48]} 14. Nxd4 {[%clk 0:00:07]}  Bxd4 {[%clk 0:00:48]} 15. g3 {[%clk 0:00:07]}  Nf6 {[%clk 0:00:38]} 16. Bg2 {[%clk 0:00:03]}  Nxe4 {[%clk 0:00:36]} 17. Bxe4 {[%clk 0:00:02]}  Rhe8 {[%clk 0:00:36]} 18. f3 {[%clk 0:00:02]}  Bf6 {[%clk 0:00:24]} 19. Rd1 {[%clk 0:00:02]}  Rxd1 {[%clk 0:00:23]} 20. Kxd1 {[%clk 0:00:03]}  Rd8+ {[%clk 0:00:22]} 21. Kc2 {[%clk 0:00:04]}  c6 {[%clk 0:00:20]} 22. Be3 {[%clk 0:00:04]}  a6 {[%clk 0:00:19]} 23. Bb6 {[%clk 0:00:03]}  Re8 {[%clk 0:00:18]} 24. Bc5 {[%clk 0:00:02]}  Kd7 {[%clk 0:00:17]} 25. b4 {[%clk 0:00:03]}  Be5 {[%clk 0:00:17]} 26. a4 {[%clk 0:00:03]}  Bd6 {[%clk 0:00:17]} 27. Bd4 {[%clk 0:00:03]}  Bxb4 {[%clk 0:00:16]} 28. Bxg7 {[%clk 0:00:03]}  Ke7 {[%clk 0:00:12]} 29. f6+ {[%clk 0:00:03]}  Ke6 {[%clk 0:00:11]} 30. Bxh7 {[%clk 0:00:04]}  Rd8 {[%clk 0:00:10]} 31. Bd3 {[%clk 0:00:04]}  c5 {[%clk 0:00:09]} 32. Bc4+ {[%clk 0:00:04]}  Kf5 {[%clk 0:00:08]} 33. h4 {[%clk 0:00:04]}  Kg6 {[%clk 0:00:07]} 34. g4 {[%clk 0:00:05]}  Rb8 {[%clk 0:00:07]} 35. h5+ {[%clk 0:00:05]}  Kh7 {[%clk 0:00:08]} 36. Bd3+ {[%clk 0:00:05]}  Kg8 {[%clk 0:00:08]} 37. h6 {[%clk 0:00:06]} 1-0


[Site "https://www.chess.com"]

[Event "Titled Tuesday Blitz November 08 Early 2022"]
[White "Averjanov, Alexey"]
[Black "Shapiro, Daniel"]
[WhiteFideId "14109867"]
[BlackFideId "2001780"]
[WhiteElo "2578"]
[BlackElo "2314"]
[Result "1-0"]
[Round "02"]
[TimeControl "180+1"]
[Date "2022.11.09"]
[WhiteClock "0:02:16"]
[BlackClock "0:00:04"]

1. d4 {[%clk 0:03:00]}  Nf6 {[%clk 0:02:59]} 2. c4 {[%clk 0:03:00]}  e6 {[%clk 0:02:59]} 3. Nf3 {[%clk 0:02:54]}  d5 {[%clk 0:02:55]} 4. e3 {[%clk 0:02:54]}  Nbd7 {[%clk 0:02:47]} 5. Nbd2 {[%clk 0:02:53]}  b6 {[%clk 0:02:37]} 6. Bd3 {[%clk 0:02:53]}  Bb7 {[%clk 0:02:36]} 7. O-O {[%clk 0:02:52]}  Bd6 {[%clk 0:02:34]} 8. Qe2 {[%clk 0:02:52]}  Ne4 {[%clk 0:02:27]} 9. b3 {[%clk 0:02:52]}  O-O {[%clk 0:02:26]} 10. Bb2 {[%clk 0:02:52]}  f5 {[%clk 0:02:22]} 11. cxd5 {[%clk 0:02:51]}  exd5 {[%clk 0:02:20]} 12. Ne5 {[%clk 0:02:51]}  Nxe5 {[%clk 0:01:47]} 13. dxe5 {[%clk 0:02:50]}  Be7 {[%clk 0:01:40]} 14. f3 {[%clk 0:02:49]}  Nc5 {[%clk 0:01:32]} 15. f4 {[%clk 0:02:39]}  Nxd3 {[%clk 0:01:23]} 16. Qxd3 {[%clk 0:02:39]}  a5 {[%clk 0:01:22]} 17. Rfd1 {[%clk 0:02:38]}  Ba6 {[%clk 0:01:14]} 18. Qc2 {[%clk 0:02:39]}  c5 {[%clk 0:01:11]} 19. Nf3 {[%clk 0:02:38]}  Qd7 {[%clk 0:01:00]} 20. Rd2 {[%clk 0:02:38]}  Qe6 {[%clk 0:00:50]} 21. Rad1 {[%clk 0:02:38]}  Bb7 {[%clk 0:00:47]} 22. a3 {[%clk 0:02:36]}  Rac8 {[%clk 0:00:46]} 23. Kf2 {[%clk 0:02:34]}  g6 {[%clk 0:00:47]} 24. Ba1 {[%clk 0:02:31]}  Rfd8 {[%clk 0:00:44]} 25. Qb2 {[%clk 0:02:24]}  Bc6 {[%clk 0:00:38]} 26. b4 {[%clk 0:02:24]}  cxb4 {[%clk 0:00:31]} 27. Nd4 {[%clk 0:02:24]}  Qd7 {[%clk 0:00:25]} 28. e6 {[%clk 0:02:22]}  bxa3 {[%clk 0:00:11]} 29. exd7 {[%clk 0:02:22]}  axb2 {[%clk 0:00:12]} 30. dxc8=Q {[%clk 0:02:21]}  bxa1=Q {[%clk 0:00:08]} 31. Qe6+ {[%clk 0:02:21]}  Kf8 {[%clk 0:00:07]} 32. Rxa1 {[%clk 0:02:21]}  Bd7 {[%clk 0:00:07]} 33. Qxd5 {[%clk 0:02:19]}  a4 {[%clk 0:00:07]} 34. Rad1 {[%clk 0:02:15]}  a3 {[%clk 0:00:06]} 35. Ne6+ {[%clk 0:02:15]}  Bxe6 {[%clk 0:00:07]} 36. Qxe6 {[%clk 0:02:16]}  Ra8 {[%clk 0:00:06]} 37. Rd7 {[%clk 0:02:15]}  Re8 {[%clk 0:00:04]} 38. Rxe7 {[%clk 0:02:16]} 1-0


[Site "https://www.chess.com"]

[Event "Titled Tuesday Blitz November 08 Early 2022"]
[White "Barria Santos, Jose Guilherme"]
[Black "Manon-og, Ramon Jr."]
[WhiteFideId "1939300"]
[BlackFideId "5200776"]
[WhiteElo "2273"]
[BlackElo "2268"]
[Result "0-1"]
[Round "02"]
[TimeControl "180+1"]
[Date "2022.11.09"]
[WhiteClock "0:00:01"]
[BlackClock "0:00:53"]

1. e4 {[%clk 0:02:24]}  c5 {[%clk 0:02:58]} 2. Nf3 {[%clk 0:02:24]}  d6 {[%clk 0:02:58]} 3. d4 {[%clk 0:02:25]}  cxd4 {[%clk 0:02:59]} 4. Qxd4 {[%clk 0:02:24]}  Nc6 {[%clk 0:02:58]} 5. Bb5 {[%clk 0:02:24]}  Bd7 {[%clk 0:02:59]} 6. Bxc6 {[%clk 0:02:24]}  Bxc6 {[%clk 0:03:00]} 7. Nc3 {[%clk 0:02:22]}  e5 {[%clk 0:03:00]} 8. Qd3 {[%clk 0:02:21]}  Be7 {[%clk 0:03:00]} 9. Nd2 {[%clk 0:02:20]}  Nf6 {[%clk 0:03:01]} 10. Nc4 {[%clk 0:02:20]}  O-O {[%clk 0:03:01]} 11. Bg5 {[%clk 0:02:18]}  Rc8 {[%clk 0:02:59]} 12. Bxf6 {[%clk 0:02:18]}  gxf6 {[%clk 0:03:00]} 13. Ne3 {[%clk 0:02:19]}  Bd7 {[%clk 0:02:53]} 14. O-O {[%clk 0:02:08]}  Be6 {[%clk 0:02:53]} 15. f4 {[%clk 0:02:04]}  Kh8 {[%clk 0:02:50]} 16. f5 {[%clk 0:01:03]}  Bd7 {[%clk 0:02:48]} 17. Rf3 {[%clk 0:00:41]}  Rg8 {[%clk 0:02:48]} 18. Rh3 {[%clk 0:00:41]}  Rg7 {[%clk 0:02:46]} 19. Ncd5 {[%clk 0:00:39]}  Bc6 {[%clk 0:02:46]} 20. c4 {[%clk 0:00:39]}  a6 {[%clk 0:02:39]} 21. Rd1 {[%clk 0:00:37]}  b5 {[%clk 0:02:37]} 22. b3 {[%clk 0:00:35]}  bxc4 {[%clk 0:02:37]} 23. Nxc4 {[%clk 0:00:36]}  Bf8 {[%clk 0:02:28]} 24. Rf1 {[%clk 0:00:24]}  a5 {[%clk 0:02:26]} 25. a4 {[%clk 0:00:20]}  Rb8 {[%clk 0:02:10]} 26. Kh1 {[%clk 0:00:15]}  Bxd5 {[%clk 0:02:04]} 27. Qxd5 {[%clk 0:00:15]}  Rb4 {[%clk 0:01:58]} 28. Qd3 {[%clk 0:00:15]}  Qb8 {[%clk 0:01:55]} 29. Rh6 {[%clk 0:00:15]}  Rxb3 {[%clk 0:01:47]} 30. Qd5 {[%clk 0:00:15]}  Rb1 {[%clk 0:01:42]} 31. Qd3 {[%clk 0:00:16]}  Rxf1+ {[%clk 0:01:41]} 32. Qxf1 {[%clk 0:00:17]}  Rxg2 {[%clk 0:01:28]} 33. Rxh7+ {[%clk 0:00:15]}  Kxh7 {[%clk 0:01:28]} 34. Kxg2 {[%clk 0:00:16]}  Qb3 {[%clk 0:01:24]} 35. Qe2 {[%clk 0:00:15]}  Bh6 {[%clk 0:01:19]} 36. Nxa5 {[%clk 0:00:11]}  Qxa4 {[%clk 0:01:19]} 37. Nc4 {[%clk 0:00:11]}  Qb4 {[%clk 0:01:16]} 38. Qd3 {[%clk 0:00:10]}  Qe1 {[%clk 0:01:12]} 39. Nxd6 {[%clk 0:00:09]}  Qh4 {[%clk 0:01:04]} 40. Qg3 {[%clk 0:00:06]}  Qh5 {[%clk 0:01:03]} 41. Qf3 {[%clk 0:00:04]}  Qg5+ {[%clk 0:01:02]} 42. Kh3 {[%clk 0:00:05]}  Qd2 {[%clk 0:01:00]} 43. Nxf7 {[%clk 0:00:04]}  Bf4 {[%clk 0:00:53]} 44. Qh5+ {[%clk 0:00:03]}  Kg7 {[%clk 0:00:53]} 45. Qg5+ {[%clk 0:00:01]}  Bxg5 {[%clk 0:00:53]} 0-1


[Site "https://www.chess.com"]

[Event "Titled Tuesday Blitz November 08 Early 2022"]
[White "Beerdsen, Thomas"]
[Black "Akylbekov, Nasyr"]
[WhiteFideId "1030108"]
[BlackFideId "13800353"]
[WhiteElo "2567"]
[BlackElo "2310"]
[Result "1-0"]
[Round "02"]
[TimeControl "180+1"]
[Date "2022.11.09"]
[WhiteClock "0:02:28"]
[BlackClock "0:01:20"]

1. g4 {[%clk 0:03:00]}  e5 {[%clk 0:02:57]} 2. Bg2 {[%clk 0:03:01]}  d5 {[%clk 0:02:57]} 3. g5 {[%clk 0:03:01]}  c6 {[%clk 0:02:57]} 4. h4 {[%clk 0:03:01]}  Bd6 {[%clk 0:02:56]} 5. c4 {[%clk 0:03:01]}  Be6 {[%clk 0:02:56]} 6. cxd5 {[%clk 0:03:00]}  cxd5 {[%clk 0:02:56]} 7. Qb3 {[%clk 0:03:01]}  Ne7 {[%clk 0:02:24]} 8. Nc3 {[%clk 0:03:01]}  e4 {[%clk 0:02:16]} 9. h5 {[%clk 0:02:52]}  Qb6 {[%clk 0:02:12]} 10. Qxb6 {[%clk 0:02:49]}  axb6 {[%clk 0:02:12]} 11. Nb5 {[%clk 0:02:49]}  Be5 {[%clk 0:02:10]} 12. d4 {[%clk 0:02:47]}  exd3 {[%clk 0:02:10]} 13. f4 {[%clk 0:02:47]}  Ra5 {[%clk 0:02:01]} 14. a4 {[%clk 0:02:43]}  d2+ {[%clk 0:01:54]} 15. Bxd2 {[%clk 0:02:41]}  Bxb2 {[%clk 0:01:55]} 16. Rb1 {[%clk 0:02:33]}  Rxa4 {[%clk 0:01:23]} 17. Rxb2 {[%clk 0:02:30]}  Ra1+ {[%clk 0:01:22]} 18. Kf2 {[%clk 0:02:30]}  O-O {[%clk 0:01:22]} 19. Nf3 {[%clk 0:02:29]}  Rxh1 {[%clk 0:01:20]} 20. Bxh1 {[%clk 0:02:30]}  Nbc6 {[%clk 0:01:20]} 21. Nbd4 {[%clk 0:02:28]}  Nf5 {[%clk 0:01:20]} 22. Nxf5 {[%clk 0:02:27]}  Bxf5 {[%clk 0:01:20]} 23. Rxb6 {[%clk 0:02:28]} 1-0


[Site "https://www.chess.com"]

[Event "Titled Tuesday Blitz November 08 Early 2022"]
[White "Begunov, Konstantin"]
[Black "Flis, Pawel"]
[WhiteFideId "4118510"]
[BlackFideId "1112864"]
[WhiteElo "2140"]
[BlackElo "1817"]
[Result "1-0"]
[Round "02"]
[TimeControl "180+1"]
[Date "2022.11.09"]
[WhiteClock "0:00:23"]
[BlackClock "0:00:01"]

1. d4 {[%clk 0:03:00]}  c5 {[%clk 0:02:58]} 2. dxc5 {[%clk 0:03:00]}  e6 {[%clk 0:02:58]} 3. Nc3 {[%clk 0:03:01]}  Bxc5 {[%clk 0:02:57]} 4. Ne4 {[%clk 0:03:01]}  Be7 {[%clk 0:02:54]} 5. Nd6+ {[%clk 0:03:00]}  Bxd6 {[%clk 0:02:52]} 6. Qxd6 {[%clk 0:03:01]}  Nf6 {[%clk 0:02:47]} 7. b3 {[%clk 0:02:54]}  Qa5+ {[%clk 0:02:41]} 8. Bd2 {[%clk 0:02:49]}  Qd5 {[%clk 0:02:41]} 9. Qxd5 {[%clk 0:02:38]}  Nxd5 {[%clk 0:02:42]} 10. e4 {[%clk 0:02:38]}  Nf6 {[%clk 0:02:38]} 11. e5 {[%clk 0:02:33]}  Nd5 {[%clk 0:02:33]} 12. c4 {[%clk 0:02:31]}  Nc7 {[%clk 0:02:33]} 13. Bb4 {[%clk 0:02:17]}  Nc6 {[%clk 0:02:27]} 14. Bd6 {[%clk 0:02:17]}  Na6 {[%clk 0:02:20]} 15. O-O-O {[%clk 0:02:14]}  b6 {[%clk 0:02:10]} 16. Ne2 {[%clk 0:01:49]}  Nc5 {[%clk 0:02:07]} 17. Nc3 {[%clk 0:01:45]}  f6 {[%clk 0:01:55]} 18. exf6 {[%clk 0:01:14]}  gxf6 {[%clk 0:01:53]} 19. Bxc5 {[%clk 0:01:15]}  bxc5 {[%clk 0:01:51]} 20. Ne4 {[%clk 0:01:16]}  Kf7 {[%clk 0:01:34]} 21. Nxc5 {[%clk 0:01:15]}  Ne5 {[%clk 0:01:28]} 22. Nd3 {[%clk 0:00:57]}  Ng6 {[%clk 0:01:21]} 23. g3 {[%clk 0:00:53]}  Bb7 {[%clk 0:01:20]} 24. Rg1 {[%clk 0:00:53]}  Bf3 {[%clk 0:01:11]} 25. Rd2 {[%clk 0:00:33]}  d5 {[%clk 0:01:10]} 26. cxd5 {[%clk 0:00:28]}  Bxd5 {[%clk 0:01:06]} 27. f4 {[%clk 0:00:26]}  Rhc8+ {[%clk 0:00:59]} 28. Kb2 {[%clk 0:00:26]}  Rc7 {[%clk 0:00:53]} 29. Nb4 {[%clk 0:00:24]}  Be4 {[%clk 0:00:45]} 30. Bg2 {[%clk 0:00:23]}  Bxg2 {[%clk 0:00:45]} 31. Rgxg2 {[%clk 0:00:24]}  a5 {[%clk 0:00:44]} 32. Nc2 {[%clk 0:00:22]}  Rac8 {[%clk 0:00:44]} 33. Nd4 {[%clk 0:00:22]}  Ne7 {[%clk 0:00:38]} 34. Rge2 {[%clk 0:00:21]}  Rc5 {[%clk 0:00:18]} 35. Nxe6 {[%clk 0:00:22]}  Rh5 {[%clk 0:00:17]} 36. Nd4 {[%clk 0:00:22]}  Nf5 {[%clk 0:00:14]} 37. Nxf5 {[%clk 0:00:21]}  Rxf5 {[%clk 0:00:14]} 38. Re3 {[%clk 0:00:22]}  Rfc5 {[%clk 0:00:13]} 39. Red3 {[%clk 0:00:22]}  Rc1 {[%clk 0:00:12]} 40. Rd7+ {[%clk 0:00:23]}  Kg6 {[%clk 0:00:12]} 41. Ra7 {[%clk 0:00:22]}  R8c5 {[%clk 0:00:08]} 42. Ra6 {[%clk 0:00:23]}  Kf5 {[%clk 0:00:07]} 43. Rdd6 {[%clk 0:00:20]}  R5c2+ {[%clk 0:00:01]} 44. Ka3 {[%clk 0:00:21]}  Rxh2 {[%clk 0:00:01]} 45. Rxf6+ {[%clk 0:00:22]}  Kg4 {[%clk 0:00:01]} 46. Rh6 {[%clk 0:00:23]} 1-0


[Site "https://www.chess.com"]